[Event "*** Titled Tuesday Blitz"]
[Site "Chess.com"]
[Date "2020.02.04"]
[Round "2"]
[White "benhal"]
[Black "INLOVEWITHF"]
[Result "1-0"]
[WhiteElo "2519"]
[BlackElo "2316"]
[TimeControl "180+2"]
[EndTime "13:25:02 PST"]
[Termination "benhal won by resignation"]

1. e4 {[%clk 0:03:01.9]} 1... e5 {[%clk 0:03:00.2]} 2. Nf3 {[%clk 0:02:57.7]}
2... Nc6 {[%clk 0:03:01.6]} 3. Bc4 {[%clk 0:02:44.5]} 3... Nf6 {[%clk
0:03:01.5]} 4. d3 {[%clk 0:02:43]} 4... h6 {[%clk 0:02:51.1]} 5. O-O {[%clk
0:02:39.8]} 5... d6 {[%clk 0:02:52.2]} 6. c3 {[%clk 0:02:41.4]} 6... g5 {[%clk
0:02:52.7]} 7. d4 {[%clk 0:02:40.3]} 7... g4 {[%clk 0:02:49.9]} 8. Ne1 {[%clk
0:02:40.8]} 8... Nxe4 {[%clk 0:02:49.3]} 9. f3 {[%clk 0:02:32.2]} 9... d5 {[%clk
0:02:37.9]} 10. fxe4 {[%clk 0:02:19.3]} 10... dxc4 {[%clk 0:02:38.4]} 11. d5
{[%clk 0:02:20.4]} 11... Ne7 {[%clk 0:02:38.3]} 12. Na3 {[%clk 0:02:14.4]} 12...
Ng6 {[%clk 0:02:25.9]} 13. Nxc4 {[%clk 0:02:14.6]} 13... Bc5+ {[%clk 0:02:27.2]}
14. Kh1 {[%clk 0:02:11.9]} 14... Qh4 {[%clk 0:02:24.9]} 15. b4 {[%clk 0:02:07]}
15... Be7 {[%clk 0:02:15.9]} 16. g3 {[%clk 0:02:03]} 16... Qh5 {[%clk
0:02:11.3]} 17. a4 {[%clk 0:01:37.5]} 17... f5 {[%clk 0:02:00.2]} 18. exf5
{[%clk 0:01:37.4]} 18... Bxf5 {[%clk 0:01:58.9]} 19. a5 {[%clk 0:01:33.8]} 19...
Be4+ {[%clk 0:01:52.7]} 20. Kg1 {[%clk 0:01:33.1]} 20... O-O-O {[%clk
0:01:53.6]} 21. Ne3 {[%clk 0:01:24.5]} 21... Bg5 {[%clk 0:01:44.5]} 22. c4
{[%clk 0:01:16.2]} 22... Kb8 {[%clk 0:01:27.2]} 23. a6 {[%clk 0:01:16.1]} 23...
Nf4 {[%clk 0:01:24.1]} 24. gxf4 {[%clk 0:01:13.3]} 24... Bxf4 {[%clk 0:01:26]}
25. Ra2 {[%clk 0:01:06.5]} 25... Qh3 {[%clk 0:01:26.7]} 26. N1g2 {[%clk
0:01:01.3]} 26... g3 {[%clk 0:01:26.1]} 27. Nxf4 {[%clk 0:00:55.4]} 27... exf4
{[%clk 0:01:28]} 28. Rxf4 {[%clk 0:00:44.2]} 28... gxh2+ {[%clk 0:01:24.8]} 29.
Rxh2 {[%clk 0:00:46.1]} 29... Rhg8+ {[%clk 0:01:26]} 30. Rg4 {[%clk 0:00:47.7]}
30... Bf3 {[%clk 0:00:53.3]} 31. Rxh3 {[%clk 0:00:43.3]} 31... Bxd1 {[%clk
0:00:54.1]} 32. Rxg8 {[%clk 0:00:41.8]} 32... Rxg8+ {[%clk 0:00:56]} 33. Kf2
{[%clk 0:00:43.3]} 33... Bg4 {[%clk 0:00:48.4]} 34. Rxh6 {[%clk 0:00:42.4]}
34... bxa6 {[%clk 0:00:49.6]} 35. Rxa6 {[%clk 0:00:42.2]} 35... Kb7 {[%clk
0:00:48.6]} 36. b5 {[%clk 0:00:42.3]} 36... Rf8+ {[%clk 0:00:47.3]} 37. Ke1
{[%clk 0:00:41.4]} 37... Bd7 {[%clk 0:00:47.3]} 38. Rg6 {[%clk 0:00:37.9]} 38...
Rf4 {[%clk 0:00:43.9]} 39. Rg7 {[%clk 0:00:38]} 39... Be8 {[%clk 0:00:43.7]} 40.
Bd2 {[%clk 0:00:38.5]} 40... Bh5 {[%clk 0:00:44]} 41. d6 {[%clk 0:00:38.5]}
41... Re4 {[%clk 0:00:39.2]} 42. Rxc7+ {[%clk 0:00:39]} 42... Kb6 {[%clk
0:00:40.6]} 43. c5+ {[%clk 0:00:36.3]} 43... Kxb5 {[%clk 0:00:42.5]} 44. d7
{[%clk 0:00:37.5]} 44... Rd4 {[%clk 0:00:42.7]} 45. c6 {[%clk 0:00:38.4]} 45...
Bf3 {[%clk 0:00:37.8]} 46. Rc8 {[%clk 0:00:32.2]} 46... Bxc6 {[%clk 0:00:38.9]}
47. d8=Q {[%clk 0:00:31.5]} 47... Rxd8 {[%clk 0:00:40.2]} 48. Rxd8 {[%clk
0:00:33.4]} 1-0

[Event "*** Titled Tuesday Blitz"]
[Site "Chess.com"]
[Date "2020.02.04"]
[Round "2"]
[White "quesfr"]
[Black "Semajkcalbk"]
[Result "1-0"]
[WhiteElo "2042"]
[BlackElo "2397"]
[TimeControl "180+2"]
[EndTime "13:25:02 PST"]
[Termination "quesfr won by resignation"]

1. e4 {[%clk 0:03:01.9]} 1... c6 {[%clk 0:02:59.9]} 2. d4 {[%clk 0:03:02.5]}
2... d5 {[%clk 0:03:01.3]} 3. e5 {[%clk 0:03:03.8]} 3... Bf5 {[%clk 0:03:01.9]}
4. h4 {[%clk 0:03:05]} 4... h5 {[%clk 0:03:02]} 5. Bd3 {[%clk 0:03:04.6]} 5...
Bxd3 {[%clk 0:02:50.9]} 6. Qxd3 {[%clk 0:03:06.5]} 6... e6 {[%clk 0:02:51.9]} 7.
Bg5 {[%clk 0:03:06.2]} 7... Qa5+ {[%clk 0:02:51]} 8. Nd2 {[%clk 0:03:05.8]} 8...
Qa6 {[%clk 0:02:39.4]} 9. c4 {[%clk 0:03:06.6]} 9... dxc4 {[%clk 0:02:40.7]} 10.
Nxc4 {[%clk 0:03:01.6]} 10... Bb4+ {[%clk 0:02:41.9]} 11. Kf1 {[%clk 0:02:56.3]}
11... Ne7 {[%clk 0:02:43.1]} 12. a3 {[%clk 0:02:40.9]} 12... Nd5 {[%clk
0:02:43.6]} 13. g3 {[%clk 0:02:32.7]} 13... Nd7 {[%clk 0:02:41.6]} 14. Kg2
{[%clk 0:02:30.9]} 14... Be7 {[%clk 0:02:41.5]} 15. Nf3 {[%clk 0:02:24.8]} 15...
N7b6 {[%clk 0:02:39.1]} 16. b3 {[%clk 0:02:14.6]} 16... Nxc4 {[%clk 0:02:10]}
17. bxc4 {[%clk 0:02:15.1]} 17... Nb6 {[%clk 0:01:40.1]} 18. Rhc1 {[%clk
0:02:14.4]} 18... Rd8 {[%clk 0:01:25.7]} 19. a4 {[%clk 0:00:54.7]} 19... Nc8
{[%clk 0:00:52.5]} 20. a5 {[%clk 0:00:50]} 20... Bxg5 {[%clk 0:00:51.4]} 21.
Nxg5 {[%clk 0:00:50]} 21... Ne7 {[%clk 0:00:53.1]} 22. Ne4 {[%clk 0:00:39.2]}
22... Nf5 {[%clk 0:00:53.5]} 23. Nc5 {[%clk 0:00:31.9]} 23... Rxd4 {[%clk
0:00:50.6]} 24. Qxd4 {[%clk 0:00:27.9]} 24... Nxd4 {[%clk 0:00:52.5]} 25. Nxa6
{[%clk 0:00:28.8]} 25... bxa6 {[%clk 0:00:54]} 26. Rab1 {[%clk 0:00:25.3]} 26...
O-O {[%clk 0:00:46]} 27. Rb7 {[%clk 0:00:26.2]} 27... Ra8 {[%clk 0:00:43.1]} 28.
Rcb1 {[%clk 0:00:22.6]} 28... Kh7 {[%clk 0:00:43.4]} 29. Rb8 {[%clk 0:00:22]}
29... Rxb8 {[%clk 0:00:43.7]} 30. Rxb8 {[%clk 0:00:23.9]} 30... c5 {[%clk
0:00:44.6]} 31. Rb7 {[%clk 0:00:22.1]} 31... Nc6 {[%clk 0:00:40.8]} 32. Rc7
{[%clk 0:00:18.4]} 32... Nxa5 {[%clk 0:00:37.5]} 33. Rxc5 {[%clk 0:00:17.5]}
33... Nb3 {[%clk 0:00:39.1]} 34. Rc7 {[%clk 0:00:17.4]} 34... a5 {[%clk
0:00:38.2]} 35. Rxa7 {[%clk 0:00:18.3]} 35... Kg6 {[%clk 0:00:39.7]} 36. f4
{[%clk 0:00:17.4]} 36... f6 {[%clk 0:00:39.4]} 37. exf6 {[%clk 0:00:16.9]} 37...
gxf6 {[%clk 0:00:41.3]} 38. Kf3 {[%clk 0:00:14.1]} 38... Kf5 {[%clk 0:00:42.8]}
39. Ke3 {[%clk 0:00:14.6]} 39... Kg4 {[%clk 0:00:44.1]} 40. Rg7+ {[%clk
0:00:15.2]} 40... Kf5 {[%clk 0:00:45.3]} 41. Ra7 {[%clk 0:00:12.8]} 41... Kg4
{[%clk 0:00:46]} 42. Kf2 {[%clk 0:00:14.1]} 42... Kf5 {[%clk 0:00:46.2]} 43. c5
{[%clk 0:00:13.1]} 43... e5 {[%clk 0:00:43.2]} 44. c6 {[%clk 0:00:11.9]} 44...
Ke6 {[%clk 0:00:44.6]} 45. fxe5 {[%clk 0:00:11.7]} 45... fxe5 {[%clk 0:00:46.5]}
46. Rh7 {[%clk 0:00:06.7]} 46... a4 {[%clk 0:00:46.8]} 47. c7 {[%clk 0:00:07.3]}
47... a3 {[%clk 0:00:48.3]} 48. c8=Q+ {[%clk 0:00:07.8]} 48... Kd5 {[%clk
0:00:49]} 49. Qb7+ {[%clk 0:00:08.3]} 49... Kd4 {[%clk 0:00:50.2]} 50. Qxb3
{[%clk 0:00:08.6]} 1-0

[Event "*** Titled Tuesday Blitz"]
[Site "Chess.com"]
[Date "2020.02.04"]
[Round "2"]
[White "ChadBiryani"]
[Black "amiralfio"]
[Result "0-1"]
[WhiteElo "2292"]
[BlackElo "2512"]
[TimeControl "180+2"]
[EndTime "13:25:09 PST"]
[Termination "amiralfio won by resignation"]

1. d4 {[%clk 0:02:57.8]} 1... f5 {[%clk 0:02:59]} 2. Bg5 {[%clk 0:02:57.7]} 2...
Nf6 {[%clk 0:02:52.4]} 3. Bxf6 {[%clk 0:02:58.3]} 3... exf6 {[%clk 0:02:53]} 4.
e3 {[%clk 0:02:56.5]} 4... d5 {[%clk 0:02:51.6]} 5. g3 {[%clk 0:02:55.6]} 5...
c6 {[%clk 0:02:48.6]} 6. Bg2 {[%clk 0:02:56.6]} 6... Na6 {[%clk 0:02:33.4]} 7.
Ne2 {[%clk 0:02:54.8]} 7... Nc7 {[%clk 0:02:32.3]} 8. O-O {[%clk 0:02:53.5]}
8... Be6 {[%clk 0:02:30.8]} 9. Qd3 {[%clk 0:02:49.1]} 9... Qd7 {[%clk
0:02:28.2]} 10. Nd2 {[%clk 0:02:43.3]} 10... Be7 {[%clk 0:02:23.3]} 11. Nf4
{[%clk 0:02:42]} 11... Bf7 {[%clk 0:02:19.2]} 12. Bh3 {[%clk 0:02:37.3]} 12...
g6 {[%clk 0:02:17.9]} 13. Rfe1 {[%clk 0:02:11.4]} 13... O-O {[%clk 0:02:17.3]}
14. Rac1 {[%clk 0:02:04.9]} 14... b5 {[%clk 0:02:17.2]} 15. a4 {[%clk
0:02:04.2]} 15... bxa4 {[%clk 0:02:00.4]} 16. c4 {[%clk 0:01:59.6]} 16... Rab8
{[%clk 0:02:01.4]} 17. Rc2 {[%clk 0:01:50.5]} 17... Bb4 {[%clk 0:01:53.3]} 18.
Ra1 {[%clk 0:01:42.6]} 18... Bxd2 {[%clk 0:01:51.8]} 19. Qxd2 {[%clk 0:01:43.6]}
19... dxc4 {[%clk 0:01:51.4]} 20. Rxa4 {[%clk 0:01:41.8]} 20... Nd5 {[%clk
0:01:52.3]} 21. Bf1 {[%clk 0:01:28.3]} 21... Nb6 {[%clk 0:01:40.8]} 22. Ra5
{[%clk 0:01:25.6]} 22... Bd5 {[%clk 0:01:38.3]} 23. Qb4 {[%clk 0:01:17]} 23...
g5 {[%clk 0:01:27.5]} 24. Ne2 {[%clk 0:01:08.9]} 24... f4 {[%clk 0:01:17.7]} 25.
exf4 {[%clk 0:01:05.5]} 25... Qf5 {[%clk 0:01:19]} 26. Qd2 {[%clk 0:00:55.1]}
26... Qe4 {[%clk 0:01:11.6]} 27. f3 {[%clk 0:00:49.4]} 27... Qxf3 {[%clk
0:01:08.2]} 28. Rxd5 {[%clk 0:00:39.2]} 28... cxd5 {[%clk 0:00:54.4]} 29. fxg5
{[%clk 0:00:32.3]} 29... fxg5 {[%clk 0:00:55.3]} 30. Qxg5+ {[%clk 0:00:33.3]}
30... Kh8 {[%clk 0:00:56.6]} 31. Qe5+ {[%clk 0:00:33]} 31... Qf6 {[%clk
0:00:57.2]} 32. Bg2 {[%clk 0:00:23.3]} 32... Qxe5 {[%clk 0:00:52.6]} 33. dxe5
{[%clk 0:00:24.7]} 33... Rbe8 {[%clk 0:00:53.8]} 34. h3 {[%clk 0:00:06.3]} 34...
Rxe5 {[%clk 0:00:51.4]} 35. Rd2 {[%clk 0:00:07.9]} 35... Kg7 {[%clk 0:00:35.1]}
36. Nf4 {[%clk 0:00:06.5]} 36... Rd8 {[%clk 0:00:33.7]} 37. Kf2 {[%clk
0:00:03.9]} 37... d4 {[%clk 0:00:34.7]} 38. g4 {[%clk 0:00:04.2]} 38... Rf8
{[%clk 0:00:19.8]} 39. Kg3 {[%clk 0:00:05]} 39... Re3+ {[%clk 0:00:21]} 40. Bf3
{[%clk 0:00:04.9]} 40... Nd5 {[%clk 0:00:22.4]} 41. Nxd5 {[%clk 0:00:03.7]}
41... Rfxf3+ {[%clk 0:00:22.5]} 42. Kh4 {[%clk 0:00:04.5]} 42... Rxh3+ {[%clk
0:00:23.1]} 43. Kg5 {[%clk 0:00:06]} 43... Re5+ {[%clk 0:00:24.5]} 0-1

[Event "*** Titled Tuesday Blitz"]
[Site "Chess.com"]
[Date "2020.02.04"]
[Round "2"]
[White "secretsuperstar7"]
[Black "jguerramzllo"]
[Result "1/2-1/2"]
[WhiteElo "2229"]
[BlackElo "2454"]
[TimeControl "180+2"]
[EndTime "13:25:10 PST"]
[Termination "Game drawn by repetition"]

1. d4 {[%clk 0:03:01.9]} 1... d5 {[%clk 0:02:59.4]} 2. Nf3 {[%clk 0:02:59.4]}
2... Nf6 {[%clk 0:02:57.8]} 3. e3 {[%clk 0:02:59.5]} 3... e6 {[%clk 0:02:56.9]}
4. Bd3 {[%clk 0:02:59.7]} 4... Be7 {[%clk 0:02:55.1]} 5. b3 {[%clk 0:02:57.3]}
5... O-O {[%clk 0:02:55.4]} 6. O-O {[%clk 0:02:53]} 6... c5 {[%clk 0:02:56.3]}
7. Bb2 {[%clk 0:02:54]} 7... Nc6 {[%clk 0:02:57.3]} 8. a3 {[%clk 0:02:52.7]}
8... b6 {[%clk 0:02:52.8]} 9. Nbd2 {[%clk 0:02:52.4]} 9... Bb7 {[%clk
0:02:53.9]} 10. Ne5 {[%clk 0:02:43.1]} 10... Nxe5 {[%clk 0:02:15.1]} 11. dxe5
{[%clk 0:02:42.4]} 11... Ne4 {[%clk 0:02:03.5]} 12. Nxe4 {[%clk 0:02:19.5]}
12... dxe4 {[%clk 0:02:04.1]} 13. Bc4 {[%clk 0:02:16.7]} 13... Qc7 {[%clk
0:02:00.7]} 14. Qg4 {[%clk 0:02:10.4]} 14... Rfd8 {[%clk 0:01:57.3]} 15. Bc3
{[%clk 0:02:05.8]} 15... Bf8 {[%clk 0:01:56.1]} 16. Be2 {[%clk 0:02:01.2]} 16...
g6 {[%clk 0:01:55.1]} 17. f4 {[%clk 0:01:55.2]} 17... exf3 {[%clk 0:01:45.7]}
18. gxf3 {[%clk 0:01:29.6]} 18... Bg7 {[%clk 0:01:41.2]} 19. f4 {[%clk 0:01:26]}
19... Be4 {[%clk 0:01:34.8]} 20. Bf3 {[%clk 0:01:23.8]} 20... Qb7 {[%clk
0:01:27.6]} 21. Qg2 {[%clk 0:01:19.3]} 21... Bxf3 {[%clk 0:01:25.7]} 22. Qxf3
{[%clk 0:01:19.6]} 22... Qxf3 {[%clk 0:01:24.9]} 23. Rxf3 {[%clk 0:01:19.2]}
23... Rd7 {[%clk 0:01:26.3]} 24. Kf2 {[%clk 0:01:13.4]} 24... Rad8 {[%clk
0:01:27.2]} 25. Ke2 {[%clk 0:01:14.4]} 25... Bf8 {[%clk 0:01:21.8]} 26. a4
{[%clk 0:01:14.1]} 26... a5 {[%clk 0:01:17.5]} 27. Rg1 {[%clk 0:01:03.1]} 27...
Be7 {[%clk 0:01:17.1]} 28. Rgf1 {[%clk 0:00:54.8]} 28... Rc8 {[%clk 0:01:12]}
29. Rb1 {[%clk 0:00:40.4]} 29... Kf8 {[%clk 0:01:12.1]} 30. Rb2 {[%clk
0:00:39.2]} 30... h5 {[%clk 0:01:08.2]} 31. Rh3 {[%clk 0:00:39]} 31... Ke8
{[%clk 0:01:07.3]} 32. Rf3 {[%clk 0:00:39.3]} 32... Rcd8 {[%clk 0:01:00.3]} 33.
Rf1 {[%clk 0:00:36.5]} 33... Rc8 {[%clk 0:00:57.2]} 34. Rf3 {[%clk 0:00:35.9]}
34... Rd5 {[%clk 0:00:56.5]} 35. Rf1 {[%clk 0:00:36.2]} 35... Bd8 {[%clk
0:00:41.5]} 36. Rf3 {[%clk 0:00:35.4]} 36... Rd7 {[%clk 0:00:42]} 37. Rf2 {[%clk
0:00:30.2]} 37... Ra7 {[%clk 0:00:42.7]} 38. Rf1 {[%clk 0:00:27.2]} 38... Be7
{[%clk 0:00:39.3]} 39. Rf2 {[%clk 0:00:26]} 39... Kd7 {[%clk 0:00:38.5]} 40. Rf1
{[%clk 0:00:26.1]} 40... Kc6 {[%clk 0:00:39.5]} 41. Rd1 {[%clk 0:00:21.3]} 41...
Rcc7 {[%clk 0:00:40]} 42. Rbb1 {[%clk 0:00:20.4]} 42... Rd7 {[%clk 0:00:41.2]}
43. Rf1 {[%clk 0:00:16.8]} 43... Ra8 {[%clk 0:00:38.4]} 44. Rb2 {[%clk
0:00:17.8]} 44... Rad8 {[%clk 0:00:37.9]} 45. Rg1 {[%clk 0:00:18.9]} 45... Kd5
{[%clk 0:00:33.6]} 46. Kf3 {[%clk 0:00:13.1]} 46... Kc6 {[%clk 0:00:33.2]} 47.
Ke2 {[%clk 0:00:13.8]} 47... Rd5 {[%clk 0:00:33.2]} 48. Rf1 {[%clk 0:00:13.8]}
48... R5d7 {[%clk 0:00:31.9]} 49. Rg1 {[%clk 0:00:14.6]} 1/2-1/2

[Event "*** Titled Tuesday Blitz"]
[Site "Chess.com"]
[Date "2020.02.04"]
[Round "2"]
[White "novocane"]
[Black "JozefKneht"]
[Result "0-1"]
[WhiteElo "2151"]
[BlackElo "2450"]
[TimeControl "180+2"]
[EndTime "13:25:10 PST"]
[Termination "JozefKneht won by resignation"]

1. d4 {[%clk 0:03:01.8]} 1... d5 {[%clk 0:03:00.9]} 2. c4 {[%clk 0:03:02.7]}
2... c6 {[%clk 0:03:02]} 3. cxd5 {[%clk 0:03:03.7]} 3... cxd5 {[%clk 0:03:03.9]}
4. Bf4 {[%clk 0:03:04.8]} 4... Nc6 {[%clk 0:03:05]} 5. e3 {[%clk 0:03:06.1]}
5... a6 {[%clk 0:03:06.6]} 6. Nc3 {[%clk 0:03:05.4]} 6... Nf6 {[%clk 0:03:08]}
7. Be2 {[%clk 0:03:05.2]} 7... Bf5 {[%clk 0:03:07.5]} 8. g4 {[%clk 0:03:06.4]}
8... Be4 {[%clk 0:03:04.6]} 9. Nxe4 {[%clk 0:03:03.8]} 9... Nxe4 {[%clk
0:03:03.5]} 10. Nf3 {[%clk 0:02:57.7]} 10... e6 {[%clk 0:02:56.3]} 11. a3 {[%clk
0:02:45.3]} 11... Rc8 {[%clk 0:02:52.2]} 12. O-O {[%clk 0:02:39.2]} 12... Bd6
{[%clk 0:02:41.8]} 13. Ne5 {[%clk 0:02:26.8]} 13... Bxe5 {[%clk 0:02:41.4]} 14.
dxe5 {[%clk 0:02:25.1]} 14... g5 {[%clk 0:02:37.7]} 15. Bg3 {[%clk 0:01:38.6]}
15... Nxg3 {[%clk 0:02:38.2]} 16. hxg3 {[%clk 0:01:39.7]} 16... Nxe5 {[%clk
0:02:38.4]} 17. f4 {[%clk 0:01:38]} 17... gxf4 {[%clk 0:02:35]} 18. exf4 {[%clk
0:01:30.5]} 18... Qb6+ {[%clk 0:02:33.8]} 19. Rf2 {[%clk 0:00:47.5]} 19... Nc4
{[%clk 0:02:32.5]} 20. b3 {[%clk 0:00:38.3]} 20... Ne3 {[%clk 0:02:15.6]} 21.
Qd3 {[%clk 0:00:32.2]} 21... Ke7 {[%clk 0:01:26.9]} 22. Re1 {[%clk 0:00:24.3]}
22... Nc2 {[%clk 0:01:22.6]} 23. Rf1 {[%clk 0:00:10.9]} 23... Nxa3 {[%clk
0:01:17.5]} 24. f5 {[%clk 0:00:09.6]} 24... Nb5 {[%clk 0:00:53]} 25. g5 {[%clk
0:00:09.6]} 25... Rc3 {[%clk 0:00:51]} 26. f6+ {[%clk 0:00:03.3]} 26... Kd7
{[%clk 0:00:48.8]} 27. Qd2 {[%clk 0:00:03.1]} 27... Rxg3+ {[%clk 0:00:49.7]} 28.
Kh2 {[%clk 0:00:04.2]} 28... Rxb3 {[%clk 0:00:45.4]} 29. Bf3 {[%clk 0:00:05.4]}
29... Qd6+ {[%clk 0:00:44.6]} 30. Kh1 {[%clk 0:00:05.8]} 30... Qb4 {[%clk
0:00:36.3]} 31. Qd1 {[%clk 0:00:06.6]} 31... Nd4 {[%clk 0:00:30.5]} 32. Bxd5
{[%clk 0:00:06.3]} 32... exd5 {[%clk 0:00:26.1]} 33. Rd2 {[%clk 0:00:07.6]}
33... Nc6 {[%clk 0:00:13.1]} 34. Rxd5+ {[%clk 0:00:09.5]} 34... Kc7 {[%clk
0:00:14]} 35. Rd7+ {[%clk 0:00:10.5]} 35... Kb6 {[%clk 0:00:15.6]} 36. Rxf7
{[%clk 0:00:11.2]} 36... Qh4+ {[%clk 0:00:16.6]} 37. Kg1 {[%clk 0:00:09]} 37...
Rg3+ {[%clk 0:00:18.1]} 38. Kf2 {[%clk 0:00:09.8]} 38... Qf4+ {[%clk 0:00:19.6]}
39. Ke2 {[%clk 0:00:11]} 39... Re3+ {[%clk 0:00:20.2]} 40. Kd2 {[%clk
0:00:10.7]} 40... Qd4+ {[%clk 0:00:21]} 41. Kc1 {[%clk 0:00:10.6]} 41... Rc3+
{[%clk 0:00:21.9]} 0-1

[Event "*** Titled Tuesday Blitz"]
[Site "Chess.com"]
[Date "2020.02.04"]
[Round "2"]
[White "andrzej"]
[Black "BrianEscalante"]
[Result "1/2-1/2"]
[WhiteElo "2360"]
[BlackElo "2581"]
[TimeControl "180+2"]
[EndTime "13:25:13 PST"]
[Termination "Game drawn by repetition"]

1. d4 {[%clk 0:03:01.9]} 1... Nf6 {[%clk 0:02:17.5]} 2. c4 {[%clk 0:03:00.6]}
2... c5 {[%clk 0:02:18.2]} 3. d5 {[%clk 0:03:00.2]} 3... b5 {[%clk 0:02:19.5]}
4. cxb5 {[%clk 0:03:01.8]} 4... a6 {[%clk 0:02:20.8]} 5. e3 {[%clk 0:03:03.4]}
5... e6 {[%clk 0:02:20.6]} 6. Nc3 {[%clk 0:02:57.6]} 6... exd5 {[%clk
0:02:20.7]} 7. Nxd5 {[%clk 0:02:57.9]} 7... Bb7 {[%clk 0:02:22]} 8. Nxf6+ {[%clk
0:02:33.4]} 8... Qxf6 {[%clk 0:02:22.9]} 9. Nf3 {[%clk 0:02:31.3]} 9... Be7
{[%clk 0:02:15.5]} 10. Bc4 {[%clk 0:02:25.8]} 10... axb5 {[%clk 0:02:15.3]} 11.
Bxb5 {[%clk 0:02:24.8]} 11... O-O {[%clk 0:02:15.5]} 12. O-O {[%clk 0:02:25.1]}
12... d5 {[%clk 0:02:01.5]} 13. Qc2 {[%clk 0:02:25.4]} 13... Na6 {[%clk
0:01:52.4]} 14. Bd2 {[%clk 0:02:18.9]} 14... d4 {[%clk 0:01:53.4]} 15. e4 {[%clk
0:02:14.9]} 15... Qg6 {[%clk 0:01:50.3]} 16. Bd3 {[%clk 0:02:10.8]} 16... Rfc8
{[%clk 0:01:38.8]} 17. e5 {[%clk 0:02:01.9]} 17... Qh5 {[%clk 0:01:39.1]} 18.
Be4 {[%clk 0:01:58.5]} 18... Bxe4 {[%clk 0:01:39.7]} 19. Qxe4 {[%clk 0:01:58.8]}
19... Qg6 {[%clk 0:01:33.8]} 20. Qxg6 {[%clk 0:01:56]} 20... hxg6 {[%clk
0:01:35.5]} 21. Rfc1 {[%clk 0:01:39.8]} 21... Nc7 {[%clk 0:01:36.3]} 22. b4
{[%clk 0:01:23.2]} 22... cxb4 {[%clk 0:01:29.9]} 23. Nxd4 {[%clk 0:01:23]} 23...
Nd5 {[%clk 0:01:31.3]} 24. Nc6 {[%clk 0:01:19.8]} 24... Bf8 {[%clk 0:01:28.1]}
25. Nd4 {[%clk 0:01:06.6]} 25... Bc5 {[%clk 0:01:21.1]} 26. Nb3 {[%clk 0:01:05]}
26... Bb6 {[%clk 0:01:20.6]} 27. Kf1 {[%clk 0:01:04.9]} 27... Rxc1+ {[%clk
0:01:08.4]} 28. Bxc1 {[%clk 0:00:51.9]} 28... Nc3 {[%clk 0:01:09.5]} 29. a3
{[%clk 0:00:43.4]} 29... bxa3 {[%clk 0:01:08.6]} 30. Rxa3 {[%clk 0:00:43.6]}
30... Rd8 {[%clk 0:01:06.9]} 31. Bd2 {[%clk 0:00:41.6]} 31... Ne4 {[%clk
0:01:00.7]} 32. Be1 {[%clk 0:00:40.9]} 32... Rd3 {[%clk 0:00:47.8]} 33. Ra8+
{[%clk 0:00:39]} 33... Kh7 {[%clk 0:00:48.4]} 34. Nc1 {[%clk 0:00:33.4]} 34...
Rd1 {[%clk 0:00:43.6]} 35. Rc8 {[%clk 0:00:31.1]} 35... Bxf2 {[%clk 0:00:31.8]}
36. Nd3 {[%clk 0:00:25.9]} 36... Rxd3 {[%clk 0:00:27.3]} 37. Bxf2 {[%clk
0:00:26.9]} 37... Rd1+ {[%clk 0:00:27.5]} 38. Be1 {[%clk 0:00:24.8]} 38... Rd5
{[%clk 0:00:24.3]} 39. Re8 {[%clk 0:00:22.8]} 39... Nc5 {[%clk 0:00:21.4]} 40.
Ke2 {[%clk 0:00:21.2]} 40... Nd7 {[%clk 0:00:21]} 41. Bg3 {[%clk 0:00:21.6]}
41... Nc5 {[%clk 0:00:22.2]} 42. Re7 {[%clk 0:00:21.9]} 42... Kg8 {[%clk
0:00:22.9]} 43. Re8+ {[%clk 0:00:23.2]} 43... Kh7 {[%clk 0:00:22.9]} 44. Re7
{[%clk 0:00:25.1]} 44... Kg8 {[%clk 0:00:23.5]} 45. Re8+ {[%clk 0:00:26.2]}
45... Kh7 {[%clk 0:00:24.6]} 1/2-1/2